fUST/lending_fUST_20240826
["ID","MTS","AMOUNT","RATE_DAILY","PERIOD"]
[336063291,1724686241982,-500.0,0.0001151,2]
[336063292,1724686241991,-500.0,0.0001151,2]
[336063293,1724686242000,-500.0,0.0001151,2]
[336063294,1724686242010,-500.0,0.0001151,2]
[336063295,1724686242019,-166.57917561,0.0001151,2]
[336063296,1724686242028,-575.4,0.0001151,2]
[336063297,1724686242037,-500.0,0.0001151,2]
[336063298,1724686242046,-629.96,0.0001151,2]
[336063299,1724686242056,-500.0,0.0001151,2]
[336063300,1724686242066,-500.0,0.0001151,2]
[336063301,1724686242076,-642.64,0.0001151,2]
[336063302,1724686242085,-500.0,0.0001151,2]
[336063303,1724686242095,-500.0,0.0001151,2]
[336063304,1724686242104,-500.0,0.0001151,2]
[336063305,1724686242113,-569.3924368,0.0001151,2]
[336063306,1724686242122,-500.0,0.0001151,2]
[336063307,1724686242131,-500.0,0.0001151,2]
[336063308,1724686242141,-502.83569948,0.0001151,2]
[336063309,1724686242150,-572.68,0.0001151,2]
[336063310,1724686242159,-500.0,0.0001151,2]
[336063311,1724686242168,-333.40689016,0.0001151,2]
[336063312,1724686242178,-500.0,0.0001151,2]
[336063313,1724686242188,-500.0,0.0001151,2]
[336063314,1724686242197,-583.4,0.0001151,2]
[336063315,1724686242207,-500.0,0.0001151,2]
[336063316,1724686242216,-500.0,0.0001151,2]
[336063317,1724686242226,-500.0,0.0001151,2]
[336063318,1724686242235,-500.0,0.0001151,2]
[336063319,1724686242245,-500.0,0.0001151,2]
[336063320,1724686242254,-500.0,0.0001151,2]
[336063321,1724686242264,-500.0,0.0001151,2]
[336063322,1724686242273,-501.00260654,0.0001151,2]
[336063323,1724686242283,-500.0,0.0001151,2]
[336063324,1724686242292,-500.0,0.0001151,2]
[336063325,1724686242301,-500.0,0.0001151,2]
[336063326,1724686242311,-500.0,0.0001151,2]
[336063327,1724686242323,-508.24,0.0001151,2]
[336063328,1724686242332,-737.53,0.0001151,2]
[336063329,1724686242341,-500.0,0.0001151,2]
[336063330,1724686242350,-500.0,0.0001151,2]
[336063331,1724686242359,-500.0,0.0001151,2]
[336063332,1724686242369,-500.0,0.0001151,2]
[336063333,1724686242378,-717.36,0.0001151,2]
[336063334,1724686242387,-500.0,0.0001151,2]
[336063335,1724686242570,-500.0,0.0001151,2]
[336063336,1724686242582,-500.0,0.0001151,2]
[336063337,1724686242592,-500.0,0.0001151,2]
[336063338,1724686242601,-500.0,0.0001151,2]
[336063339,1724686242610,-500.0,0.0001151,2]
[336063340,1724686242619,-500.0,0.0001151,2]
[336063341,1724686242628,-1169.17,0.0001151,2]
[336063342,1724686242638,-500.0,0.0001151,2]
[336063343,1724686242646,-500.0,0.0001151,2]
[336063344,1724686242655,-500.0,0.0001151,2]
[336063345,1724686242665,-500.0,0.0001151,2]
[336063346,1724686242674,-500.0,0.0001151,2]
[336063347,1724686242684,-436.10087746,0.0001151,2]
[336063348,1724686242693,-508.09,0.0001151,2]
[336063349,1724686242702,-500.0,0.0001151,2]
[336063350,1724686242712,-638.77,0.0001151,2]
[336063351,1724686242722,-500.0,0.0001151,2]
[336063352,1724686242733,-500.0,0.0001151,2]
[336063353,1724686242743,-471.09121866,0.0001151,2]
[336063354,1724686242752,-500.0,0.0001151,2]
[336063355,1724686242761,-500.0,0.0001151,2]
[336063356,1724686242771,-500.0,0.0001151,2]
[336063357,1724686242780,-396.78494498,0.0001151,2]
[336063358,1724686242789,-500.0,0.0001151,2]
[336063359,1724686242798,-500.0,0.0001151,2]
[336063360,1724686242807,-500.0,0.0001151,2]
[336063361,1724686242817,-841.04,0.0001151,2]
[336063362,1724686242827,-500.0,0.0001151,2]
[336063363,1724686242836,-500.0,0.0001151,2]
[336063364,1724686242846,-500.0,0.0001151,2]
[336063365,1724686242855,-716.32,0.0001151,2]
[336063366,1724686242865,-568.5,0.0001151,2]
[336063367,1724686242874,-500.0,0.0001151,2]
[336063368,1724686242883,-500.0,0.0001151,2]
[336063369,1724686242892,-500.0,0.0001151,2]
[336063370,1724686242906,-568.37,0.0001151,2]
[336063371,1724686242915,-500.0,0.0001151,2]
[336063372,1724686242925,-866.85,0.0001151,2]
[336063373,1724686242934,-500.0,0.0001151,2]
[336063374,1724686242945,-500.0,0.0001151,2]
[336063375,1724686242954,-692.07,0.0001151,2]
[336063376,1724686242963,-500.0,0.0001151,2]
[336063377,1724686242972,-554.61,0.0001151,2]
[336063378,1724686242984,-500.0,0.0001151,2]
[336063379,1724686242995,-500.0,0.0001151,2]
[336063380,1724686243005,-690.36,0.0001151,2]
[336063381,1724686243014,-500.0,0.0001151,2]
[336063382,1724686243024,-500.0,0.0001151,2]
[336063383,1724686243034,-826.76,0.0001151,2]
[336063384,1724686243044,-500.0,0.0001151,2]
[336063385,1724686243054,-500.0,0.0001151,2]
[336063386,1724686243064,-500.0,0.0001151,2]
[336063387,1724686243078,-500.0,0.0001151,2]
[336063388,1724686243095,-315.43926399,0.0001151,2]
[336063389,1724686243104,-500.0,0.0001151,2]
[336063391,1724686243114,-830.12,0.0001151,2]
[336063393,1724686243123,-500.0,0.0001151,2]
[336063395,1724686243133,-500.0,0.0001151,2]
[336063396,1724686243143,-852.72,0.0001151,2]
[336063397,1724686243152,-500.0,0.0001151,2]
[336063398,1724686243162,-500.0,0.0001151,2]
[336063399,1724686243171,-522.04478446,0.0001151,2]
[336063400,1724686243181,-562.85,0.0001151,2]
[336063401,1724686243190,-1294.49,0.0001151,2]
[336063402,1724686243200,-500.0,0.0001151,2]
[336063403,1724686243210,-500.0,0.0001151,2]
[336063404,1724686243221,-227.26680882,0.0001151,2]
[336063405,1724686243231,-500.0,0.0001151,2]
[336063406,1724686243240,-800.28,0.0001151,2]
[336063407,1724686243250,-500.0,0.0001151,2]
[336063408,1724686243260,-500.0,0.0001151,2]
[336063409,1724686243269,-571.11,0.0001151,2]
[336063410,1724686243279,-500.0,0.0001151,2]
[336063411,1724686243288,-534.57,0.0001151,2]
[336063412,1724686243298,-709.65,0.0001151,2]
[336063413,1724686243307,-500.0,0.0001151,2]
[336063414,1724686243319,-500.0,0.0001151,2]
[336063415,1724686243328,-500.0,0.0001151,2]
[336063416,1724686243337,-552.56,0.0001151,2]
[336063417,1724686243346,-500.0,0.0001151,2]
[336063418,1724686243355,-500.0,0.0001151,2]
[336063419,1724686243365,-596.35,0.0001151,2]
[336063420,1724686243373,-900.8,0.0001151,2]
[336063421,1724686243383,-500.0,0.0001151,2]
[336063422,1724686243392,-500.0,0.0001151,2]
[336063423,1724686243402,-500.0,0.0001151,2]
[336063424,1724686243411,-500.0,0.0001151,2]
[336063425,1724686243420,-500.0,0.0001151,2]
[336063426,1724686243430,-500.0,0.0001151,2]
[336063427,1724686243439,-500.0,0.0001151,2]
[336063428,1724686243448,-537.45,0.0001151,2]
[336063429,1724686243457,-580.99638008,0.0001151,2]
[336063430,1724686243467,-500.0,0.0001151,2]
[336063431,1724686243476,-500.0,0.0001151,2]
[336063432,1724686243485,-500.0,0.0001151,2]
[336063433,1724686243494,-500.0,0.0001151,2]
[336063434,1724686243504,-500.0,0.0001151,2]
[336063435,1724686243513,-500.0,0.0001151,2]
[336063436,1724686243522,-500.0,0.0001151,2]
[336063437,1724686243531,-500.0,0.0001151,2]
[336063438,1724686243540,-500.0,0.0001151,2]
[336063439,1724686243549,-500.0,0.0001151,2]
[336063440,1724686243559,-500.0,0.0001151,2]
[336063441,1724686243569,-605.87,0.0001151,2]
[336063442,1724686243578,-500.0,0.0001151,2]
[336063443,1724686243587,-505.04337403,0.0001151,2]
[336063444,1724686243597,-500.0,0.0001151,2]
[336063445,1724686243606,-500.0,0.0001151,2]
[336063446,1724686243616,-500.0,0.0001151,2]
[336063447,1724686243625,-922.71,0.0001151,2]
[336063448,1724686243634,-534.93,0.0001151,2]
[336063449,1724686243644,-542.13,0.0001151,2]
[336063450,1724686243653,-500.0,0.0001151,2]
[336063451,1724686243662,-500.0,0.0001151,2]
[336063452,1724686243671,-500.0,0.0001151,2]
[336063453,1724686243680,-472.88064532,0.0001151,2]
[336063454,1724686243690,-500.0,0.0001151,2]
[336063455,1724686243699,-500.0,0.0001151,2]
[336063456,1724686243708,-573.27,0.0001151,2]
[336063457,1724686243717,-500.0,0.0001151,2]
[336063458,1724686243727,-500.0,0.0001151,2]
[336063459,1724686243736,-505.77,0.0001151,2]
[336063460,1724686243745,-748.61,0.0001151,2]
[336063461,1724686243755,-500.0,0.00011511,2]
[336063462,1724686243764,-500.0,0.00011511,2]
[336063463,1724686243774,-500.0,0.00011511,2]
[336063464,1724686243783,-500.0,0.00011511,2]
[336063465,1724686243793,-500.0,0.00011511,2]
[336063466,1724686243802,-500.0,0.00011511,2]
[336063467,1724686243812,-500.0,0.00011511,2]
[336063468,1724686243822,-500.0,0.00011511,2]
[336063469,1724686243831,-500.0,0.00011511,2]
[336063470,1724686243840,-500.0,0.00011511,2]
[336063471,1724686243850,-832.77,0.00011511,2]
[336063472,1724686243860,-832.77,0.00011511,2]
[336063473,1724686243870,-832.77,0.00011511,2]
[336063474,1724686243879,-832.77,0.00011511,2]
[336063475,1724686243889,-624.88,0.00011512,2]
[336063476,1724686243898,-631.05,0.00011512,2]
[336063477,1724686243911,-193.0,0.00011512,2]
[336063478,1724686243922,-500.0,0.00011512,2]
[336063479,1724686243931,-832.77,0.00011512,2]
[336063480,1724686243943,-167.254161,0.00011573,2]
[336063481,1724686243952,-500.0,0.00011573,2]
[336063482,1724686243962,-598.7608682,0.00011573,2]
[336063483,1724686243972,-210.39215594,0.00011621,2]
[336063484,1724686243986,-154.74467129,0.00011621,2]
[336063485,1724686243996,-154.72922386,0.00011621,2]
[336063486,1724686244007,-2314.07,0.00011681,2]
[336063487,1724686244016,-12801.86359117,0.00011682,2]
[336063488,1724686244026,-500.0,0.00011683,2]
[336063489,1724686244035,-500.0,0.00011683,2]
[336063490,1724686244045,-1734.77,0.00011683,2]
[336063491,1724686244054,-500.0,0.00011683,2]
[336063492,1724686244064,-500.0,0.00011683,2]
[336063493,1724686244075,-500.0,0.00011683,2]
[336063494,1724686244084,-500.0,0.00011683,2]
[336063495,1724686244093,-500.0,0.00011683,2]
[336063496,1724686244103,-748.30795254,0.00011684,2]
[336063497,1724686244113,-2120.15574118,0.00011712,2]
[336063498,1724686244123,-500.0,0.00011773,2]
[336063499,1724686244132,-500.0,0.00011773,2]
[336063500,1724686244142,-500.0,0.0001178,2]
[336063501,1724686244152,-500.0,0.0001178,2]
[336063502,1724686244163,-652.67,0.0001178,2]
[336063503,1724686244172,-487.17269504,0.0001178,2]
[336063504,1724686244181,-2066.95,0.0001178,2]
[336063505,1724686244191,-908.26,0.0001178,2]
[336063507,1724686244201,-775.54,0.0001178,2]
[336063508,1724686244211,-775.01,0.0001178,2]
[336063509,1724686244221,-500.0,0.0001178,2]
[336063510,1724686244230,-500.0,0.0001178,2]
[336063511,1724686244240,-715.22,0.0001178,2]
[336063512,1724686244251,-500.0,0.0001178,2]
[336063513,1724686244261,-948.3,0.0001178,2]
[336063514,1724686244270,-590.81,0.0001178,2]
[336063515,1724686244281,-500.0,0.0001178,2]
[336063516,1724686244290,-500.0,0.0001178,2]
[336063517,1724686244300,-500.0,0.0001178,2]
[336063518,1724686244310,-18649.43,0.0001178,2]
[336063519,1724686244320,-566.99,0.0001178,2]
[336063520,1724686244329,-884.2,0.0001178,2]
[336063521,1724686244340,-500.0,0.0001178,2]
[336063522,1724686244350,-1022.06,0.0001178,2]
[336063523,1724686244360,-500.0,0.0001178,2]
[336063524,1724686244371,-500.0,0.0001178,2]
[336063527,1724686244381,-525.62,0.0001178,2]
[336063530,1724686244391,-501.72,0.0001178,2]
[336063533,1724686244400,-500.0,0.0001178,2]
[336063536,1724686244409,-500.0,0.0001178,2]
[336063538,1724686244418,-500.0,0.0001178,2]
[336063540,1724686244428,-500.0,0.0001178,2]
[336063542,1724686244438,-445.12765527,0.0001178,2]
[336063543,1724686244448,-942.92,0.0001178,2]
[336063544,1724686244459,-523.78,0.00011781,2]
[336063545,1724686244469,-500.0,0.00011781,2]
[336063546,1724686244478,-903.64,0.00011781,2]
[336063548,1724686244487,-500.0,0.00011781,2]
[336063550,1724686244496,-500.0,0.00011781,2]
[336063551,1724686244506,-500.0,0.00011781,2]
[336063553,1724686244517,-845.34,0.00011781,2]
[336063555,1724686244527,-934.07,0.00011781,2]
[336063556,1724686244537,-500.0,0.00011781,2]
[336063557,1724686244548,-500.0,0.00011781,2]
[336063558,1724686244559,-500.0,0.00011781,2]
[336063559,1724686244569,-564.79,0.00011781,2]
[336063560,1724686244579,-500.98262313,0.00011781,2]
[336063561,1724686244590,-603.72,0.00011781,2]
[336063562,1724686244600,-500.0,0.00011781,2]
[336063563,1724686244611,-501.32742554,0.00011781,2]
[336063564,1724686244623,-524.5,0.00011781,2]
[336063565,1724686244634,-500.0,0.00011781,2]
[336063566,1724686244644,-500.0,0.00011781,2]
[336063567,1724686244657,-500.0,0.00011781,2]
[336063568,1724686244667,-2314.07,0.00011781,2]
[336063569,1724686244676,-2314.07,0.00011781,2]
[336063570,1724686244686,-500.0,0.00011781,2]
[336063571,1724686244695,-809.88,0.00011781,2]
[336063572,1724686244705,-500.0,0.00011781,2]
[336063573,1724686244715,-500.0,0.00011781,2]
[336063574,1724686244724,-500.0,0.00011781,2]
[336063575,1724686244734,-500.0,0.00011781,2]
[336063576,1724686244743,-679.31,0.00011781,2]
[336063577,1724686244753,-641.44,0.00011781,2]
[336063578,1724686244762,-693.38,0.00011781,2]
[336063579,1724686244772,-712.93,0.00011781,2]
[336063580,1724686244781,-744.07,0.00011781,2]
[336063581,1724686244790,-500.0,0.00011781,2]
[336063582,1724686244800,-786.68,0.00011781,2]
[336063583,1724686244809,-1011.54,0.00011781,2]
[336063584,1724686244819,-500.0,0.00011781,2]
[336063585,1724686244832,-513.65,0.00011781,2]
[336063586,1724686244842,-500.0,0.00011781,2]
[336063587,1724686244853,-634.94,0.00011781,2]
[336063588,1724686244863,-500.0,0.00011781,2]
[336063589,1724686244873,-1001.36,0.00011781,2]
[336063590,1724686244883,-500.0,0.00011781,2]
[336063591,1724686244945,-569.68,0.00011781,2]
[336063592,1724686244954,-500.0,0.00011781,2]
[336063593,1724686244964,-1883.01,0.00011781,2]
[336063594,1724686244973,-527.46,0.00011781,2]
[336063595,1724686244984,-500.0,0.00011781,2]
[336063596,1724686244996,-1026.64,0.00011781,2]
[336063597,1724686245006,-633.44,0.00011781,2]
[336063598,1724686245020,-500.0,0.00011781,2]
[336063599,1724686245031,-500.0,0.00011781,2]
[336063600,1724686245041,-500.0,0.00011781,2]
[336063602,1724686245052,-500.0,0.00011781,2]
[336063603,1724686245062,-500.0,0.00011781,2]
[336063604,1724686245073,-606.63,0.00011781,2]
[336063605,1724686245082,-1703.92,0.00011781,2]
[336063606,1724686245091,-843.14,0.00011781,2]
[336063607,1724686245100,-984.36,0.00011781,2]
[336063608,1724686245110,-500.0,0.00011781,2]
[336063609,1724686245119,-581.6,0.00011781,2]
[336063610,1724686245129,-621.81,0.00011781,2]
[336063611,1724686245139,-571.29,0.00011781,2]
[336063612,1724686245148,-500.0,0.00011781,2]
[336063613,1724686245157,-500.0,0.00011781,2]
[336063615,1724686245167,-575.8,0.00011781,2]
[336063617,1724686245176,-500.0,0.00011781,2]
[336063618,1724686245186,-382.98761858,0.00011781,2]
[336063619,1724686245196,-500.0,0.00011781,2]
[336063620,1724686245205,-500.0,0.00011781,2]
[336063621,1724686245214,-500.0,0.00011781,2]
[336063622,1724686245224,-500.0,0.00011781,2]
[336063623,1724686245233,-1253.34,0.00011781,2]
[336063624,1724686245243,-500.0,0.00011781,2]
[336063625,1724686245252,-500.0,0.00011781,2]
[336063626,1724686245261,-1370.77,0.00011781,2]
[336063627,1724686245271,-500.0,0.00011781,2]
[336063628,1724686245280,-500.0,0.00011781,2]
[336063629,1724686245289,-2271.97,0.00011781,2]
[336063630,1724686245298,-500.0,0.00011781,2]
[336063631,1724686245307,-819.14,0.00011781,2]
[336063632,1724686245316,-500.0,0.00011781,2]
[336063633,1724686245326,-500.0,0.00011782,2]
[336063634,1724686245335,-500.0,0.00011782,2]
[336063635,1724686245345,-500.0,0.00011782,2]
[336063636,1724686245354,-500.0,0.00011782,2]
[336063637,1724686245363,-500.0,0.00011782,2]
[336063638,1724686245373,-500.0,0.00011782,2]
[336063639,1724686245382,-500.0,0.00011782,2]
[336063641,1724686245392,-500.0,0.00011782,2]
[336063642,1724686245401,-500.0,0.00011782,2]
[336063643,1724686245410,-500.0,0.00011782,2]
[336063644,1724686245419,-500.0,0.00011782,2]
[336063645,1724686245428,-500.0,0.00011782,2]
[336063647,1724686245437,-529.47,0.00011782,2]
[336063649,1724686245447,-500.0,0.00011782,2]
[336063651,1724686245456,-500.0,0.00011782,2]
[336063653,1724686245465,-500.0,0.00011782,2]
[336063655,1724686245474,-501.13,0.00011782,2]
[336063656,1724686245483,-500.0,0.00011782,2]
[336063657,1724686245492,-545.15,0.00011782,2]
[336063658,1724686245502,-500.0,0.00011782,2]
[336063659,1724686245511,-500.0,0.00011782,2]
[336063660,1724686245520,-500.0,0.00011782,2]
[336063661,1724686245529,-500.0,0.00011782,2]
[336063662,1724686245538,-516.79,0.00011782,2]
[336063663,1724686245548,-500.0,0.00011782,2]
[336063664,1724686245557,-500.0,0.00011782,2]
[336063665,1724686245566,-500.0,0.00011782,2]
[336063666,1724686245578,-767.01,0.00011782,2]
[336063667,1724686245587,-500.0,0.00011782,2]
[336063668,1724686245597,-500.0,0.00011782,2]
[336063669,1724686245606,-500.0,0.00011782,2]
[336063670,1724686245615,-500.0,0.00011782,2]
[336063671,1724686245625,-500.0,0.00011782,2]
[336063672,1724686245634,-500.0,0.00011782,2]
[336063673,1724686245644,-500.0,0.00011782,2]
[336063674,1724686245653,-771.96,0.00011782,2]
[336063675,1724686245663,-500.0,0.00011782,2]
[336063676,1724686245672,-500.0,0.00011782,2]
[336063677,1724686245681,-500.0,0.00011782,2]
[336063678,1724686245691,-500.0,0.00011782,2]
[336063679,1724686245700,-500.0,0.00011782,2]
[336063680,1724686245710,-500.0,0.00011782,2]
[336063681,1724686245719,-500.0,0.00011782,2]
[336063682,1724686245729,-500.0,0.00011782,2]
[336063683,1724686245739,-500.0,0.00011782,2]
[336063684,1724686245748,-500.0,0.00011782,2]
[336063685,1724686245757,-500.0,0.00011782,2]
[336063686,1724686245767,-500.0,0.00011782,2]
[336063687,1724686245776,-851.37,0.00011782,2]
[336063688,1724686245786,-500.0,0.00011782,2]
[336063689,1724686245796,-500.0,0.00011782,2]
[336063690,1724686245805,-500.0,0.00011782,2]
[336063691,1724686245814,-911.67,0.00011782,2]
[336063692,1724686245828,-500.0,0.00011782,2]
[336063693,1724686245837,-500.0,0.00011782,2]
[336063694,1724686245846,-568.6423941,0.00011782,2]
[336063695,1724686245857,-500.0,0.00011782,2]
[336063696,1724686245866,-500.0,0.00011782,2]
[336063697,1724686245876,-500.0,0.00011782,2]
[336063698,1724686245885,-500.0,0.00011782,2]
[336063699,1724686245894,-820.24,0.00011782,2]
[336063700,1724686245907,-245.04107141,0.00011782,2]
[336063701,1724686245916,-500.0,0.00011782,2]
[336063702,1724686245924,-552.58,0.00011782,2]
[336063703,1724686245934,-500.0,0.00011782,2]
[336063704,1724686245943,-187.10364623,0.00011782,2]
[336063705,1724686245953,-599.34,0.00011782,2]
[336063706,1724686245963,-500.0,0.00011782,2]
[336063707,1724686245972,-500.0,0.00011782,2]
[336063708,1724686245984,-500.0,0.00011782,2]
[336063709,1724686245993,-500.0,0.00011782,2]
[336063710,1724686246002,-500.0,0.00011782,2]
[336063711,1724686246011,-500.0,0.00011782,2]
[336063712,1724686246021,-502.5,0.00011782,2]
[336063713,1724686246030,-500.0,0.00011782,2]
[336063714,1724686246039,-500.0,0.00011782,2]
[336063715,1724686246048,-500.0,0.00011782,2]
[336063716,1724686246058,-750.57,0.00011782,2]
[336063717,1724686246067,-500.0,0.00011782,2]
[336063718,1724686246077,-500.0,0.00011782,2]
[336063719,1724686246087,-500.0,0.00011782,2]
[336063720,1724686246095,-612.14,0.00011782,2]
[336063721,1724686246105,-500.0,0.00011782,2]
[336063722,1724686246114,-500.0,0.00011782,2]
[336063723,1724686246123,-464.30112552,0.00011782,2]
[336063724,1724686246132,-500.0,0.00011782,2]
[336063725,1724686246142,-500.0,0.00011782,2]
[336063726,1724686246152,-500.0,0.00011782,2]
[336063727,1724686246162,-500.0,0.00011782,2]
[336063728,1724686246171,-500.0,0.00011782,2]
[336063729,1724686246180,-778.69,0.00011782,2]
[336063730,1724686246190,-500.0,0.00011782,2]
[336063731,1724686246200,-617.2,0.00011782,2]
[336063732,1724686246209,-500.0,0.00011782,2]
[336063733,1724686246219,-500.0,0.00011782,2]
[336063734,1724686246229,-624.51,0.00011782,2]
[336063735,1724686246238,-2314.07,0.00011782,2]
[336063736,1724686246247,-585.25,0.00011782,2]
[336063737,1724686246257,-500.0,0.00011782,2]
[336063738,1724686246266,-517.24,0.00011782,2]
[336063739,1724686246275,-500.0,0.00011782,2]
[336063740,1724686246285,-500.0,0.00011782,2]
[336063741,1724686246294,-500.0,0.00011782,2]
[336063742,1724686246304,-513.71041203,0.00011782,2]
[336063743,1724686246313,-624.61,0.00011782,2]
[336063744,1724686246323,-500.0,0.00011782,2]
[336063745,1724686246332,-426.45908312,0.00011782,2]
[336063746,1724686246342,-782.77,0.00011782,2]
[336063747,1724686246352,-500.0,0.00011782,2]
[336063748,1724686246362,-500.0,0.00011782,2]
[336063749,1724686246371,-500.0,0.00011782,2]
[336063751,1724686246381,-500.0,0.00011782,2]
[336063752,1724686246390,-548.05,0.00011782,2]
[336063753,1724686246400,-500.0,0.00011782,2]
[336063754,1724686246409,-500.0,0.00011782,2]
[336063755,1724686246419,-500.0,0.00011782,2]
[336063756,1724686246429,-501.55115637,0.00011782,2]
[336063757,1724686246439,-500.0,0.00011782,2]
[336063758,1724686246449,-500.0,0.00011782,2]
[336063759,1724686246458,-500.0,0.00011782,2]
[336063760,1724686246468,-500.0,0.00011782,2]
[336063761,1724686246478,-448.95127171,0.00011782,2]
[336063762,1724686246487,-500.0,0.00011782,2]
[336063763,1724686246497,-500.0,0.00011782,2]
[336063764,1724686246506,-500.0,0.00011782,2]
[336063766,1724686246516,-667.51,0.00011782,2]
[336063768,1724686246525,-656.37,0.00011782,2]
[336063769,1724686246535,-500.0,0.00011782,2]
[336063770,1724686246544,-500.0,0.00011782,2]
[336063771,1724686246553,-500.0,0.00011782,2]
[336063772,1724686246562,-500.0,0.00011782,2]
[336063773,1724686246573,-500.0,0.00011782,2]
[336063774,1724686246582,-500.0,0.00011782,2]
[336063775,1724686246593,-500.0,0.00011782,2]
[336063776,1724686246602,-500.0,0.00011782,2]
[336063777,1724686246611,-500.0,0.00011782,2]
[336063778,1724686246620,-467.3026272,0.00011782,2]
[336063779,1724686246630,-500.0,0.00011782,2]
[336063780,1724686246639,-500.0,0.00011782,2]
[336063781,1724686246649,-542.3,0.00011782,2]
[336063782,1724686246658,-500.0,0.00011782,2]
[336063783,1724686246668,-500.0,0.00011782,2]
[336063784,1724686246678,-500.0,0.00011782,2]
[336063785,1724686246688,-500.0,0.00011782,2]
[336063786,1724686246697,-500.0,0.00011782,2]
[336063787,1724686246709,-500.0,0.00011782,2]
[336063788,1724686246718,-500.0,0.00011782,2]
[336063789,1724686246728,-500.0,0.00011782,2]
[336063790,1724686246737,-500.0,0.00011782,2]
[336063791,1724686246747,-500.0,0.00011782,2]
[336063792,1724686246756,-500.0,0.00011782,2]
[336063793,1724686246767,-500.0,0.00011782,2]
[336063794,1724686246776,-832.77,0.00011782,2]
[336063795,1724686246786,-500.0,0.00011782,2]
[336063796,1724686246796,-500.0,0.00011782,2]
[336063797,1724686246805,-500.0,0.00011782,2]
[336063798,1724686246815,-500.0,0.00011782,2]
[336063799,1724686246826,-500.0,0.00011783,2]
[336063800,1724686246835,-500.0,0.00011783,2]
[336063801,1724686246845,-500.0,0.00011783,2]
[336063802,1724686246855,-777.21,0.00011783,2]
[336063803,1724686246865,-655.13,0.00011783,2]
[336063804,1724686246874,-570.79,0.00011783,2]
[336063805,1724686246884,-500.0,0.00011783,2]
[336063806,1724686246893,-156.9015561,0.00011783,2]
[336063807,1724686246905,-538.81,0.00011783,2]
[336063808,1724686246915,-745.0,0.00011783,2]
[336063809,1724686246924,-500.0,0.00011783,2]
[336063810,1724686246934,-769.22,0.00011783,2]
[336063811,1724686246945,-500.0,0.00011783,2]
[336063812,1724686246954,-570.58,0.00011783,2]
[336063813,1724686246964,-500.0,0.00011783,2]
[336063814,1724686246974,-656.19,0.00011783,2]
[336063815,1724686246985,-500.0,0.00011783,2]
[336063816,1724686246995,-500.0,0.00011783,2]
[336063817,1724686247005,-447.60060409,0.00011783,2]
[336063818,1724686247015,-500.0,0.00011783,2]
[336063819,1724686247024,-624.14,0.00011783,2]
[336063820,1724686247034,-500.0,0.00011783,2]
[336063821,1724686247044,-500.0,0.00011783,2]